fUST/lending_fUST_20250808
["ID","MTS","AMOUNT","RATE_DAILY","PERIOD"]
[377875302,1754589099193,-479.16,0.00024109,2]
[377875303,1754589099203,-475.28,0.00024109,2]
[377875304,1754589099213,-460.0,0.00024109,2]
[377875305,1754589099223,-511.83,0.00024109,2]
[377875306,1754589099234,-153.40488687,0.00024109,2]
[377875307,1754589099243,-1677.96,0.00024109,2]
[377875308,1754589099252,-496.73,0.00024109,2]
[377875309,1754589099262,-460.0,0.00024109,2]
[377875310,1754589099271,-2679.67,0.00024109,2]
[377875311,1754589099280,-460.0,0.00024109,2]
[377875312,1754589099290,-479.16,0.00024109,2]
[377875313,1754589099299,-1601.12,0.00024109,2]
[377875314,1754589099309,-2200.78,0.00024109,2]
[377875315,1754589099318,-1202.59,0.00024109,2]
[377875316,1754589099328,-893.12,0.00024109,2]
[377875317,1754589099337,-460.0,0.00024109,2]
[377875318,1754589099346,-1228.68,0.00024109,2]
[377875319,1754589099355,-460.0,0.00024109,2]
[377875320,1754589099365,-460.0,0.00024109,2]
[377875321,1754589099376,-460.0,0.00024109,2]
[377875322,1754589099385,-460.0,0.00024109,2]
[377875323,1754589099395,-460.0,0.00024109,2]
[377875324,1754589099404,-460.0,0.00024109,2]
[377875325,1754589099414,-2063.1,0.00024109,2]
[377875326,1754589099423,-558.57,0.00024109,2]
[377875327,1754589099432,-4568.18,0.00024109,2]
[377875328,1754589099441,-1013.49,0.00024109,2]
[377875329,1754589099451,-460.0,0.00024109,2]
[377875330,1754589099461,-460.0,0.00024109,2]
[377875331,1754589099470,-541.96,0.00024109,2]
[377875332,1754589099480,-150.12650732,0.00024109,2]
[377875333,1754589099489,-460.0,0.00024109,2]
[377875334,1754589099499,-1175.66,0.00024109,2]
[377875335,1754589099508,-460.0,0.00024109,2]
[377875336,1754589099518,-588.41,0.00024109,2]
[377875337,1754589099528,-2183.26,0.00024109,2]
[377875338,1754589099539,-460.0,0.00024109,2]
[377875339,1754589099549,-500.0,0.00024109,2]
[377875340,1754589099559,-460.0,0.00024109,2]
[377875341,1754589099568,-6185.67,0.00024109,2]
[377875342,1754589099578,-671.87,0.00024109,2]
[377875343,1754589099587,-9393.66,0.00024109,2]
[377875344,1754589099598,-3715.56,0.00024109,2]
[377875345,1754589099607,-460.0,0.00024109,2]
[377875346,1754589099617,-460.0,0.00024109,2]
[377875347,1754589099628,-617.56,0.00024109,2]
[377875348,1754589099638,-2605.25,0.00024109,2]
[377875349,1754589099648,-460.0,0.00024109,2]
[377875350,1754589099657,-3296.2,0.00024109,2]
[377875351,1754589099667,-991.4,0.00024109,2]
[377875352,1754589099676,-460.0,0.00024109,2]
[377875353,1754589099686,-460.0,0.00024109,2]
[377875354,1754589099695,-498.33,0.00024109,2]
[377875355,1754589099705,-1105.26,0.00024109,2]
[377875356,1754589099714,-836.29,0.00024109,2]
[377875357,1754589099723,-4226.84,0.00024109,2]
[377875358,1754589099733,-1771.43,0.00024109,2]
[377875359,1754589099742,-460.0,0.00024109,2]
[377875360,1754589099752,-460.0,0.00024109,2]
[377875361,1754589099761,-460.0,0.00024109,2]
[377875362,1754589099771,-469.59984286,0.00024109,2]
[377875363,1754589099781,-460.0,0.00024109,2]
[377875364,1754589099793,-489.02,0.00024109,2]
[377875365,1754589099803,-715.56,0.00024109,2]
[377875366,1754589099812,-460.0,0.00024109,2]
[377875367,1754589099823,-1269.12,0.00024109,2]
[377875368,1754589099832,-460.0,0.00024109,2]
[377875369,1754589099843,-3053.08,0.00024109,2]
[377875370,1754589099854,-460.0,0.00024109,2]
[377875371,1754589099863,-760.87,0.00024109,2]
[377875372,1754589099873,-593.17173863,0.00024109,2]
[377875373,1754589099883,-1549.47,0.00024109,2]
[377875374,1754589100009,-1562.82,0.00024109,2]
[377875375,1754589100019,-151.0,0.00024139,2]
[377875376,1754589100029,-283.71364255,0.00024139,2]
[377875377,1754589100038,-500.0,0.00024139,2]
[377875378,1754589100047,-500.0,0.00024139,2]
[377875379,1754589100057,-151.0,0.00024139,2]
[377875380,1754589100066,-151.0,0.00024139,2]
[377875381,1754589100076,-281.31197946,0.00024139,2]
[377875382,1754589100086,-265.26531351,0.00024139,2]
[377875383,1754589100096,-1758.0,0.00024152,3]
[377875384,1754589100105,-2500.0,0.00024164,2]
[377875385,1754589100115,-2500.0,0.00024164,2]
[377875386,1754589100125,-2500.0,0.00024164,2]
[377875387,1754589100135,-4309.0,0.00024182,2]
[377875388,1754589100146,-173.854557,0.00024182,7]
[377875389,1754589100157,-173.854557,0.00024182,7]
[377875390,1754589100167,-151.0,0.00024182,7]
[377875391,1754589100178,-151.0,0.00024182,7]
[377875392,1754589100189,-2020.0,0.00024188,2]
[377875393,1754589100198,-10000.0,0.000242,3]
[377875394,1754589100208,-151.0,0.000242,7]
[377875395,1754589100217,-151.0,0.000242,7]
[377875396,1754589100227,-154.018202,0.000242,7]
[377875397,1754589100236,-269.406875,0.000242,7]
[377875398,1754589100246,-269.406875,0.000242,7]
[377875399,1754589100255,-151.0,0.000242,7]
[377875400,1754589100265,-151.0,0.000242,7]
[377875401,1754589100275,-1157.307166,0.000242,7]
[377875402,1754589100285,-1157.307166,0.000242,7]
[377875403,1754589100295,-461.3695942,0.000242,3]
[377875404,1754589100305,-527.57568145,0.000242,3]
[377875405,1754589100315,-160.0,0.000242,3]
[377875406,1754589100325,-216.52217562,0.000242,3]
[377875407,1754589100335,-160.0,0.000242,3]
[377875408,1754589100344,-231.83071243,0.000242,3]
[377875409,1754589100354,-12660.90439413,0.000242,3]
[377875410,1754589100363,-160.0,0.000242,3]
[377875411,1754589100372,-215.31718835,0.000242,3]
[377875412,1754589100382,-160.0,0.000242,3]
[377875413,1754589100391,-160.0,0.000242,3]
[377875414,1754589100400,-312.16666667,0.000242,3]
[377875415,1754589100411,-150.59244816,0.00024254,2]
[377875416,1754589100420,-151.0,0.00024314,7]
[377875417,1754589100430,-319.494968,0.00024314,7]
[377875418,1754589100441,-319.494968,0.00024314,7]
[377875419,1754589100451,-5000.0,0.00024329,2]
[377875420,1754589100461,-437.421,0.00024333,2]
[377875421,1754589100471,-2149.0,0.00024333,2]
[377875422,1754589100480,-982.712,0.00024333,2]
[377875423,1754589100491,-636.0,0.00024333,2]
[377875424,1754589100501,-550.0,0.00024364,2]
[377875425,1754589100511,-2500.0,0.00024364,2]
[377875426,1754589100522,-2214.00565859,0.00024364,2]
[377875427,1754589100533,-2500.0,0.00024364,2]
[377875428,1754589100543,-2500.0,0.00024364,2]
[377875429,1754589100552,-1402.71923968,0.0002438,2]
[377875430,1754589100562,-151.0,0.00024383,7]
[377875431,1754589100571,-151.0,0.00024383,7]
[377875432,1754589100581,-151.0,0.00024383,7]
[377875433,1754589100590,-151.0,0.00024383,7]
[377875434,1754589100600,-151.0,0.00024383,7]
[377875435,1754589100610,-151.0,0.00024383,7]
[377875436,1754589100621,-151.0,0.00024383,7]
[377875437,1754589100630,-321.93963408,0.00024383,2]
[377875438,1754589100639,-569.86,0.00024383,2]
[377875439,1754589100650,-460.0,0.00024383,2]
[377875440,1754589100659,-460.0,0.00024383,2]
[377875441,1754589100670,-460.0,0.00024383,2]
[377875442,1754589100681,-1226.812263,0.00024383,7]
[377875443,1754589100690,-1226.812263,0.00024383,7]
[377875444,1754589100700,-460.0,0.00024383,2]
[377875445,1754589100709,-460.0,0.00024383,2]
[377875446,1754589100718,-460.0,0.00024383,2]
[377875447,1754589100727,-460.0,0.00024383,2]
[377875448,1754589100737,-460.0,0.00024383,2]
[377875449,1754589100746,-460.0,0.00024383,2]
[377875450,1754589100756,-460.0,0.00024383,2]
[377875451,1754589100765,-726.3,0.00024383,2]
[377875452,1754589100774,-4258.89,0.00024383,2]
[377875453,1754589100783,-460.0,0.00024383,2]
[377875454,1754589100793,-170.53506616,0.00024383,2]
[377875455,1754589100804,-541.96,0.00024383,2]
[377875456,1754589100814,-562.74622948,0.00024383,2]
[377875457,1754589100823,-460.0,0.00024383,2]
[377875458,1754589100833,-460.0,0.00024383,2]
[377875459,1754589100842,-464.34421792,0.00024383,2]
[377875460,1754589100852,-460.0,0.00024383,2]
[377875461,1754589100862,-460.0,0.00024383,2]
[377875462,1754589100871,-460.0,0.00024383,2]
[377875463,1754589100880,-1141.82,0.00024383,2]
[377875464,1754589100890,-460.0,0.00024383,2]
[377875465,1754589100900,-460.0,0.00024383,2]
[377875466,1754589100909,-460.0,0.00024383,2]
[377875467,1754589100919,-460.0,0.00024383,2]
[377875468,1754589100927,-239.192816,0.00024383,7]
[377875469,1754589100936,-239.192816,0.00024383,7]
[377875470,1754589100946,-460.0,0.00024383,2]
[377875471,1754589100955,-460.0,0.00024383,2]
[377875472,1754589100965,-1232.26,0.00024383,2]
[377875473,1754589100974,-460.0,0.00024383,2]
[377875474,1754589100984,-536.44536672,0.00024383,2]
[377875475,1754589100996,-460.0,0.00024383,2]
[377875476,1754589101005,-1649.4,0.00024383,2]
[377875477,1754589101015,-460.0,0.00024383,2]
[377875478,1754589101024,-460.0,0.00024383,2]
[377875479,1754589101034,-460.0,0.00024383,2]
[377875480,1754589101044,-460.0,0.00024383,2]
[377875481,1754589101054,-460.0,0.00024383,2]
[377875482,1754589101064,-460.0,0.00024383,2]
[377875483,1754589101075,-460.0,0.00024383,2]
[377875484,1754589101085,-460.0,0.00024383,2]
[377875485,1754589101094,-920.95,0.00024383,2]
[377875486,1754589101104,-460.0,0.00024383,2]
[377875487,1754589101114,-785.09,0.00024383,2]
[377875488,1754589101123,-460.0,0.00024383,2]
[377875489,1754589101133,-460.0,0.00024383,2]
[377875490,1754589101143,-1321.78,0.00024383,2]
[377875491,1754589101153,-930.97,0.00024383,2]
[377875492,1754589101164,-466.75332525,0.00024383,2]
[377875493,1754589101173,-501.46,0.00024383,2]
[377875494,1754589101183,-814.23,0.00024383,2]
[377875495,1754589101193,-460.0,0.00024383,2]
[377875496,1754589101203,-460.0,0.00024383,2]
[377875497,1754589101213,-1720.3,0.00024383,2]
[377875498,1754589101222,-460.0,0.00024383,2]
[377875499,1754589101231,-460.0,0.00024383,2]
[377875500,1754589101242,-460.0,0.00024383,2]
[377875501,1754589101251,-460.0,0.00024383,2]
[377875502,1754589101261,-460.0,0.00024383,2]
[377875503,1754589101270,-460.0,0.00024383,2]
[377875504,1754589101279,-460.0,0.00024383,2]
[377875505,1754589101289,-460.0,0.00024383,2]
[377875506,1754589101298,-460.0,0.00024383,2]
[377875507,1754589101308,-536.85,0.00024383,2]
[377875508,1754589101318,-1339.1,0.00024383,2]
[377875509,1754589101327,-460.0,0.00024383,2]
[377875510,1754589101337,-460.0,0.00024383,2]
[377875511,1754589101346,-154.29814672,0.00024383,2]
[377875512,1754589101355,-460.0,0.00024383,2]
[377875513,1754589101364,-342.51451134,0.00024383,2]
[377875514,1754589101374,-460.0,0.00024383,2]
[377875515,1754589101383,-460.0,0.00024383,2]
[377875516,1754589101393,-460.0,0.00024383,2]
[377875517,1754589101402,-460.0,0.00024383,2]
[377875518,1754589101411,-460.0,0.00024383,2]
[377875519,1754589101421,-808.27,0.00024383,2]
[377875520,1754589101430,-460.0,0.00024383,2]
[377875521,1754589101439,-460.0,0.00024383,2]
[377875522,1754589101448,-460.0,0.00024383,2]
[377875523,1754589101457,-582.92153195,0.00024383,2]
[377875524,1754589101467,-460.0,0.00024383,2]
[377875525,1754589101476,-460.0,0.00024383,2]
[377875526,1754589101485,-553.3208099,0.00024383,2]
[377875527,1754589101494,-460.0,0.00024383,2]
[377875528,1754589101504,-460.0,0.00024383,2]
[377875529,1754589101513,-465.24,0.00024383,2]
[377875530,1754589101522,-485.95692302,0.00024383,2]
[377875531,1754589101531,-1315.05,0.00024383,2]
[377875532,1754589101541,-460.0,0.00024383,2]
[377875533,1754589101550,-460.0,0.00024383,2]
[377875534,1754589101559,-460.0,0.00024383,2]
[377875535,1754589101569,-460.0,0.00024383,2]
[377875536,1754589101579,-460.0,0.00024383,2]
[377875537,1754589101588,-460.0,0.00024383,2]
[377875538,1754589101597,-460.0,0.00024383,2]
[377875539,1754589101606,-460.0,0.00024383,2]
[377875540,1754589101615,-521.0,0.00024383,2]
[377875541,1754589101624,-460.0,0.00024383,2]
[377875542,1754589101634,-460.0,0.00024383,2]
[377875543,1754589101643,-1003.1,0.00024383,2]
[377875544,1754589101652,-842.23,0.00024383,2]
[377875545,1754589101661,-512.74,0.00024383,2]
[377875546,1754589101670,-154.66497834,0.00024383,2]
[377875547,1754589101679,-460.0,0.00024383,2]
[377875548,1754589101688,-460.0,0.00024383,2]
[377875549,1754589101698,-482.13712031,0.00024383,2]
[377875550,1754589101707,-460.0,0.00024383,2]
[377875551,1754589101716,-460.0,0.00024383,2]
[377875552,1754589101725,-460.0,0.00024383,2]
[377875553,1754589101734,-2023.68,0.00024383,2]
[377875554,1754589101743,-460.0,0.00024383,2]
[377875555,1754589101753,-1722.81,0.00024383,2]
[377875556,1754589101763,-460.0,0.00024383,2]
[377875557,1754589101772,-460.0,0.00024383,2]
[377875558,1754589101782,-1805.48,0.00024383,2]
[377875559,1754589101791,-479.16,0.00024383,2]
[377875560,1754589101800,-460.0,0.00024383,2]
[377875561,1754589101810,-475.28,0.00024383,2]
[377875562,1754589101820,-460.0,0.00024383,2]
[377875563,1754589101830,-511.83,0.00024383,2]
[377875564,1754589101840,-1677.96,0.00024383,2]
[377875565,1754589101849,-496.73,0.00024383,2]
[377875566,1754589101859,-460.0,0.00024383,2]
[377875567,1754589101868,-2679.67,0.00024383,2]
[377875568,1754589101878,-460.0,0.00024383,2]
[377875569,1754589101888,-479.16,0.00024383,2]
[377875570,1754589101899,-1601.12,0.00024383,2]
[377875571,1754589101908,-2200.78,0.00024383,2]
[377875572,1754589101918,-1202.59,0.00024383,2]
[377875573,1754589101928,-460.0,0.00024383,2]
[377875574,1754589101938,-893.12,0.00024383,2]
[377875575,1754589101948,-1228.68,0.00024383,2]
[377875576,1754589101957,-460.0,0.00024383,2]
[377875577,1754589101966,-322.63,0.00024383,2]
[377875578,1754589101976,-469.96022211,0.00024383,2]
[377875579,1754589101986,-460.0,0.00024383,2]
[377875580,1754589101999,-460.0,0.00024383,2]
[377875581,1754589102007,-460.0,0.00024383,2]
[377875582,1754589102016,-2063.1,0.00024383,2]
[377875583,1754589102026,-4568.18,0.00024383,2]
[377875584,1754589102036,-1013.49,0.00024383,2]
[377875585,1754589102046,-460.0,0.00024383,2]
[377875586,1754589102055,-460.0,0.00024383,2]
[377875587,1754589102065,-541.96,0.00024383,2]
[377875588,1754589102076,-460.0,0.00024383,2]
[377875589,1754589102086,-1175.66,0.00024383,2]
[377875590,1754589102096,-460.0,0.00024383,2]
[377875591,1754589102106,-588.41,0.00024383,2]
[377875592,1754589102115,-2183.26,0.00024383,2]
[377875593,1754589102125,-460.0,0.00024383,2]
[377875594,1754589102135,-500.0,0.00024383,2]
[377875595,1754589102148,-378.9157829,0.00024383,2]
[377875596,1754589102159,-671.87,0.00024383,2]
[377875597,1754589102169,-6185.67,0.00024383,2]
[377875598,1754589102179,-9393.66,0.00024383,2]
[377875599,1754589102189,-3715.56,0.00024383,2]
[377875600,1754589102199,-460.0,0.00024383,2]
[377875601,1754589102209,-460.0,0.00024383,2]
[377875602,1754589102219,-617.56,0.00024383,2]
[377875603,1754589102229,-2605.25,0.00024383,2]
[377875604,1754589102239,-460.0,0.00024383,2]
[377875605,1754589102249,-3296.2,0.00024383,2]
[377875606,1754589102259,-991.4,0.00024383,2]
[377875607,1754589102268,-460.0,0.00024383,2]
[377875608,1754589102278,-460.0,0.00024383,2]
[377875609,1754589102287,-498.33,0.00024383,2]
[377875610,1754589102297,-1105.26,0.00024383,2]
[377875611,1754589102306,-836.29,0.00024383,2]
[377875612,1754589102316,-4226.84,0.00024383,2]
[377875613,1754589102326,-1771.43,0.00024383,2]
[377875614,1754589102335,-460.0,0.00024383,2]
[377875615,1754589102345,-460.0,0.00024383,2]
[377875616,1754589102355,-460.0,0.00024383,2]
[377875617,1754589102365,-483.57655411,0.00024383,2]
[377875618,1754589102375,-460.0,0.00024383,2]
[377875619,1754589102384,-715.56,0.00024383,2]
[377875620,1754589102398,-1269.12,0.00024383,2]
[377875621,1754589102407,-460.0,0.00024383,2]
[377875622,1754589102416,-507.13849697,0.00024383,2]
[377875623,1754589102426,-760.87,0.00024383,2]
[377875624,1754589102436,-3053.08,0.00024383,2]
[377875625,1754589102446,-1549.47,0.00024383,2]
[377875626,1754589102457,-5888.0,0.00024407,2]
[377875627,1754589102467,-500.0,0.00024413,2]
[377875628,1754589102477,-251.71729665,0.00024413,2]
[377875629,1754589102487,-151.0,0.00024413,2]
[377875630,1754589102496,-151.0,0.00024413,2]
[377875631,1754589102507,-460.0,0.00024433,2]
[377875632,1754589102517,-486.55,0.0002455,2]
[377875633,1754589102526,-156.51242,0.00024573,2]
[377875634,1754589102536,-10112.45374756,0.000246,2]
[377875635,1754589102545,-151.0,0.00024642,2]
[377875636,1754589102554,-302505.73129495,0.0002465,2]
[377875637,1754589102564,-503.62307387,0.0002465,2]
[377875638,1754589102574,-151.0,0.0002465,7]
[377875639,1754589102583,-151.0,0.0002465,7]
[377875640,1754589102593,-151.0,0.0002465,7]
[377875641,1754589102602,-151.797321,0.0002465,7]
[377875642,1754589102611,-151.0,0.0002465,7]
[377875643,1754589102620,-151.0,0.0002465,7]
[377875644,1754589102629,-319.494968,0.0002465,7]
[377875645,1754589102638,-319.494968,0.0002465,7]
[377875646,1754589102651,-1226.812263,0.0002465,7]
[377875647,1754589102660,-1226.812263,0.0002465,7]
[377875648,1754589102670,-660.005741,0.0002465,2]
[377875649,1754589102679,-239.192816,0.0002465,7]
[377875650,1754589102689,-239.192816,0.0002465,7]
[377875651,1754589102698,-151.0,0.00024657,7]
[377875652,1754589102707,-151.0,0.00024657,7]
[377875653,1754589102717,-151.0,0.00024657,7]
[377875654,1754589102726,-151.0,0.00024657,7]
[377875655,1754589102735,-151.0,0.00024657,7]
[377875656,1754589102745,-151.0,0.00024657,7]
[377875657,1754589102755,-151.0,0.00024657,7]
[377875658,1754589102765,-151.0,0.00024657,7]
[377875659,1754589102774,-151.0,0.00024657,7]
[377875660,1754589102784,-432.790972,0.00024657,7]
[377875661,1754589102793,-432.790972,0.00024657,7]
[377875662,1754589102803,-569.86,0.00024657,2]
[377875663,1754589102813,-460.0,0.00024657,2]
[377875664,1754589102822,-466.25177067,0.00024657,2]
[377875665,1754589102833,-460.0,0.00024657,2]
[377875666,1754589102842,-460.0,0.00024657,2]
[377875667,1754589102852,-460.0,0.00024657,2]
[377875668,1754589102862,-460.0,0.00024657,2]
[377875669,1754589102872,-460.0,0.00024657,2]
[377875670,1754589102881,-726.3,0.00024657,2]
[377875671,1754589102891,-4258.89,0.00024657,2]
[377875672,1754589102902,-460.0,0.00024657,2]
[377875673,1754589102911,-541.96,0.00024657,2]
[377875674,1754589102921,-460.0,0.00024657,2]
[377875675,1754589102930,-171.90145489,0.00024657,2]
[377875676,1754589102940,-493.5539849,0.00024657,2]
[377875677,1754589102950,-460.0,0.00024657,2]
[377875678,1754589102959,-460.0,0.00024657,2]
[377875679,1754589102969,-1141.82,0.00024657,2]
[377875680,1754589102978,-460.0,0.00024657,2]
[377875681,1754589102988,-460.0,0.00024657,2]
[377875682,1754589103000,-460.0,0.00024657,2]
[377875683,1754589103010,-460.0,0.00024657,2]
[377875684,1754589103019,-460.0,0.00024657,2]
[377875685,1754589103029,-460.0,0.00024657,2]
[377875686,1754589103038,-1232.26,0.00024657,2]
[377875687,1754589103049,-460.0,0.00024657,2]
[377875688,1754589103059,-460.0,0.00024657,2]
[377875689,1754589103068,-1649.4,0.00024657,2]
[377875690,1754589103079,-460.0,0.00024657,2]
[377875691,1754589103089,-460.0,0.00024657,2]
[377875692,1754589103099,-460.0,0.00024657,2]
[377875693,1754589103109,-460.0,0.00024657,2]
[377875694,1754589103118,-460.0,0.00024657,2]
[377875695,1754589103128,-460.0,0.00024657,2]
[377875696,1754589103137,-460.0,0.00024657,2]
[377875697,1754589103148,-920.95,0.00024657,2]
[377875698,1754589103158,-460.0,0.00024657,2]
[377875699,1754589103167,-785.09,0.00024657,2]
[377875700,1754589103176,-460.0,0.00024657,2]
[377875701,1754589103186,-460.0,0.00024657,2]
[377875702,1754589103195,-1321.78,0.00024657,2]
[377875703,1754589103206,-930.97,0.00024657,2]
[377875704,1754589103215,-501.46,0.00024657,2]
[377875705,1754589103225,-460.0,0.00024657,2]
[377875706,1754589103235,-814.23,0.00024657,2]
[377875707,1754589103244,-1720.3,0.00024657,2]
[377875708,1754589103458,-460.0,0.00024657,2]
[377875709,1754589103470,-238.49418204,0.00024657,2]
[377875710,1754589103481,-460.0,0.00024657,2]
[377875711,1754589103490,-460.0,0.00024657,2]
[377875712,1754589103501,-460.0,0.00024657,2]
[377875713,1754589103510,-460.0,0.00024657,2]
[377875714,1754589103519,-288.67778186,0.00024657,2]
[377875715,1754589103529,-460.0,0.00024657,2]
[377875716,1754589103538,-460.0,0.00024657,2]
[377875717,1754589103548,-536.85,0.00024657,2]
[377875718,1754589103557,-1339.1,0.00024657,2]
[377875719,1754589103567,-460.0,0.00024657,2]
[377875720,1754589103577,-460.0,0.00024657,2]
[377875721,1754589103586,-460.0,0.00024657,2]
[377875722,1754589103596,-460.0,0.00024657,2]
[377875723,1754589103605,-460.0,0.00024657,2]
[377875724,1754589103614,-460.0,0.00024657,2]
[377875725,1754589103624,-460.0,0.00024657,2]
[377875726,1754589103634,-808.27,0.00024657,2]
[377875727,1754589103643,-460.0,0.00024657,2]
[377875728,1754589103653,-460.0,0.00024657,2]
[377875729,1754589103663,-460.0,0.00024657,2]
[377875730,1754589103673,-460.0,0.00024657,2]
[377875731,1754589103682,-386.11473464,0.00024657,2]
[377875732,1754589103692,-460.0,0.00024657,2]
[377875733,1754589103702,-460.0,0.00024657,2]
[377875734,1754589103712,-465.24,0.00024657,2]
[377875735,1754589103721,-1315.05,0.00024657,2]
[377875736,1754589103731,-460.0,0.00024657,2]
[377875737,1754589103741,-460.0,0.00024657,2]
[377875738,1754589103750,-460.0,0.00024657,2]
[377875739,1754589103760,-460.0,0.00024657,2]
[377875740,1754589103769,-460.0,0.00024657,2]
[377875741,1754589103779,-460.0,0.00024657,2]
[377875742,1754589103788,-460.0,0.00024657,2]
[377875743,1754589103798,-460.0,0.00024657,2]
[377875744,1754589103807,-460.0,0.00024657,2]
[377875745,1754589103817,-521.0,0.00024657,2]
[377875746,1754589103827,-460.0,0.00024657,2]
[377875747,1754589103837,-1003.1,0.00024657,2]
[377875748,1754589103846,-842.23,0.00024657,2]
[377875749,1754589103857,-512.74,0.00024657,2]
[377875750,1754589103866,-460.0,0.00024657,2]
[377875751,1754589103876,-460.0,0.00024657,2]
[377875752,1754589103886,-460.0,0.00024657,2]
[377875753,1754589103896,-460.0,0.00024657,2]
[377875754,1754589103905,-460.0,0.00024657,2]
[377875755,1754589103914,-2023.68,0.00024657,2]
[377875756,1754589103924,-460.0,0.00024657,2]
[377875757,1754589103933,-1722.81,0.00024657,2]
[377875758,1754589103942,-460.0,0.00024657,2]
[377875759,1754589103950,-460.0,0.00024657,2]
[377875760,1754589103959,-1805.48,0.00024657,2]
[377875761,1754589103968,-479.16,0.00024657,2]
[377875762,1754589103977,-210.4,0.00024657,2]
[377875763,1754589103987,-475.28,0.00024657,2]
[377875764,1754589103999,-460.0,0.00024657,2]
[377875765,1754589104007,-511.83,0.00024657,2]
[377875766,1754589104016,-1677.96,0.00024657,2]
[377875767,1754589104025,-496.73,0.00024657,2]
[377875768,1754589104034,-460.0,0.00024657,2]
[377875769,1754589104043,-460.0,0.00024657,2]
[377875770,1754589104052,-2679.67,0.00024657,2]
[377875771,1754589104061,-479.16,0.00024657,2]
[377875772,1754589104072,-1601.12,0.00024657,2]
[377875773,1754589104082,-2200.78,0.00024657,2]
[377875774,1754589104091,-1202.59,0.00024657,2]
[377875775,1754589104100,-460.0,0.00024657,2]
[377875776,1754589104109,-893.12,0.00024657,2]
[377875777,1754589104119,-1228.68,0.00024657,2]
[377875778,1754589104128,-460.0,0.00024657,2]
[377875779,1754589104138,-460.0,0.00024657,2]
[377875780,1754589104149,-460.0,0.00024657,2]
[377875781,1754589104159,-460.0,0.00024657,2]
[377875782,1754589104168,-2063.1,0.00024657,2]
[377875783,1754589104178,-4568.18,0.00024657,2]
[377875784,1754589104187,-1013.49,0.00024657,2]
[377875785,1754589104197,-460.0,0.00024657,2]
[377875786,1754589104206,-460.0,0.00024657,2]
[377875787,1754589104216,-541.96,0.00024657,2]
[377875788,1754589104225,-1175.66,0.00024657,2]
[377875789,1754589104235,-466.73,0.00024657,2]
[377875790,1754589104245,-460.0,0.00024657,2]
[377875791,1754589104255,-588.41,0.00024657,2]
[377875792,1754589104265,-2183.26,0.00024657,2]
[377875793,1754589104274,-460.0,0.00024657,2]
[377875794,1754589104284,-578.58489178,0.00024657,2]
[377875795,1754589104294,-671.87,0.00024657,2]
[377875796,1754589104304,-6185.67,0.00024657,2]
[377875797,1754589104313,-9393.66,0.00024657,2]
[377875798,1754589104323,-3715.56,0.00024657,2]
[377875799,1754589104332,-460.0,0.00024657,2]
[377875800,1754589104342,-460.0,0.00024657,2]
[377875801,1754589104358,-617.56,0.00024657,2]